bitfinex-derivatives/quotes_ETHF0:USTF0_20250730
["timestamp","ask_amount","ask_price","bid_price","bid_amount"]
[1753877741567,18.636,3752.5,3752.4,2.70012]
[1753877741768,40.8,3753.0,3752.6,5.96919]
[1753877741968,6.70238167,3752.9,3752.8,2.1671]
[1753877742177,20.00838847,3752.9,3752.8,2.1671]
[1753877742372,21.56948847,3752.9,3752.8,5.4362]
[1753877742667,0.74918847,3752.9,3752.8,8.644]
[1753877743070,0.95075424,3753.5,3752.8,8.644]
[1753877743071,2.31979583,3753.7,3753.4,0.53288]
[1753877743274,6.3839,3753.9,3753.8,5.96902]
[1753877743473,67.23904245,3753.9,3753.8,5.96902]
[1753877743678,72.56832552,3753.9,3753.8,5.4362]
[1753877744174,52.51318307,3753.9,3753.8,5.4362]
[1753877744367,1.4178995,3753.9,3753.8,8.644]
[1753877744671,0.94519891,3753.9,3753.8,8.644]
[1753877745175,1.4178995,3753.9,3753.8,9.17682]
[1753877745374,1.4178995,3754.0,3753.8,9.17682]
[1753877745676,2.09389,3754.1,3754.0,3.7398]
[1753877745880,3.70889,3754.1,3754.0,5.4362]
[1753877746081,1.81661,3753.9,3753.8,2.1671]
[1753877746371,23.3682,3753.9,3753.8,3.5005]
[1753877746678,30.17555321,3753.9,3753.7,0.53283]
[1753877746873,4.7322,3753.8,3753.7,2.2249]
[1753877747175,4.59648774,3753.8,3753.7,5.4362]
[1753877747370,20.05638774,3753.9,3753.8,0.53282]
[1753877747574,1.42038774,3754.0,3753.8,5.96902]
[1753877747877,45.92928774,3754.0,3753.9,5.4362]
[1753877748170,44.5089,3754.0,3753.9,5.4362]
[1753877748372,44.5089,3754.0,3753.9,1.5554]
[1753877748576,44.6857,3754.0,3753.9,3.5005]
[1753877748876,45.87241128,3754.0,3753.9,5.4362]
[1753877749079,42.9843,3754.0,3753.9,5.4362]
[1753877749472,40.8,3754.0,3753.9,5.4362]
[1753877749973,44.0059,3754.0,3753.9,4.88880584]
[1753877750169,44.0059,3754.0,3753.9,0.6639]
[1753877750475,42.2333,3754.0,3753.9,4.1028]
[1753877750876,44.5387,3754.0,3753.9,0.8915]
[1753877751075,2.1303,3753.7,3753.6,2.1671]
[1753877751377,5.3362,3753.7,3753.6,4.1028]
[1753877751579,5.3362,3753.7,3753.6,0.6117]
[1753877751771,5.3362,3753.7,3753.5,3.2078]
[1753877751772,5.90685,3753.6,3753.5,3.2078]
[1753877752172,7.80742292,3753.6,3753.5,3.2078]
[1753877752374,5.90685,3753.6,3753.5,3.2078]
[1753877752574,0.53291,3753.2,3753.1,4.3856]
[1753877752875,6.8584954,3753.2,3753.1,1.4319]
[1753877753182,4.7676,3753.1,3753.0,3.2078]
[1753877753382,5.374,3753.1,3753.0,5.9607]
[1753877753581,5.90698,3752.7,3752.6,7.186]
[1753877753771,5.374,3752.7,3752.6,8.507]
[1753877753971,1.76826,3752.9,3752.8,4.34]
[1753877754177,6.85968906,3752.9,3752.8,5.2992]
[1753877754383,5.90696,3752.9,3752.8,5.2992]
[1753877755381,7.60918362,3752.9,3752.8,5.2992]
[1753877755577,7.60918362,3752.9,3752.8,3.4264]
[1753877755773,6.65645456,3752.9,3752.8,2.1054]
[1753877756277,7.61152932,3752.9,3752.8,2.1054]
[1753877756876,4.80569456,3752.9,3752.8,5.2992]
[1753877757070,1.98479456,3752.9,3752.8,5.2992]
[1753877757272,2.31123824,3752.9,3752.8,5.2992]
[1753877757470,2.94013824,3752.9,3752.8,5.2992]
[1753877757678,4.86643824,3752.9,3752.8,5.2992]
[1753877757978,6.12349456,3752.9,3752.8,4.3856]
[1753877758281,7.55087267,3752.9,3752.8,5.2992]
[1753877758577,3.0379,3752.7,3752.2,3.2078]
[1753877758785,5.374,3752.4,3752.3,5.2992]
[1753877759082,6.12349456,3752.4,3752.3,5.2992]
[1753877760180,7.07873569,3752.4,3752.3,3.4264]
[1753877760381,7.07873569,3752.4,3752.3,5.2992]
[1753877760382,3.91109456,3752.4,3752.3,5.2992]
[1753877760683,0.74949456,3752.4,3752.3,5.2992]
[1753877761678,1.35589456,3752.4,3752.3,5.2992]
[1753877761885,6.12349456,3752.4,3752.3,5.2992]
[1753877762090,1.98479456,3752.4,3752.3,5.2992]
[1753877762279,0.74949456,3752.4,3752.3,5.2992]
[1753877762479,1.28252456,3752.4,3752.3,2.1054]
[1753877762682,0.74949456,3752.4,3752.3,5.2992]
[1753877763188,59.434,3752.8,3752.6,2.1054]
[1753877763380,0.74962354,3752.7,3752.6,9.03999]
[1753877764085,19.16694,3753.0,3752.9,0.53295]
[1753877764296,19.38365548,3753.0,3752.9,5.83215]
[1753877764485,0.74965548,3753.0,3752.9,5.83215]
[1753877764785,1.13927,3753.5,3753.4,5.2992]
[1753877764987,19.99024305,3753.5,3753.4,5.2992]
[1753877765592,0.74984305,3753.5,3753.4,5.2992]
[1753877765784,2.1299,3754.1,3754.0,2.1054]
[1753877765984,2.87982417,3754.1,3754.0,5.2992]
[1753877766184,6.12392417,3754.1,3754.0,4.3856]
[1753877766386,1.5235,3753.5,3753.4,3.1148]
[1753877766689,1.2353,3753.5,3753.4,5.2992]
[1753877766993,19.1658,3754.0,3753.9,5.2992]
[1753877767178,19.98916751,3754.0,3753.9,5.2992]
[1753877767381,40.8,3754.3,3754.2,2.1054]
[1753877767581,1.2353,3755.0,3754.9,1.5081]
[1753877767791,3.91133605,3755.0,3754.9,5.2992]
[1753877768095,0.95524113,3755.7,3755.0,1.321]
[1753877768293,0.95524113,3755.7,3754.8,3.74048]
[1753877768294,0.74982256,3755.6,3755.5,6.02058]
[1753877768594,1.9263,3755.8,3755.7,2.40535]
[1753877768789,0.2,3755.9,3755.7,0.53255]
[1753877768990,0.2,3755.9,3755.5,3.2078]
[1753877768991,0.2,3755.9,3755.8,3.1938]
[1753877769292,0.2,3755.9,3755.8,3.72634]
[1753877769488,0.2,3755.9,3755.8,3.1938]
[1753877770189,0.2,3755.9,3755.6,3.72636]
[1753877770386,3.2441,3755.8,3755.7,1.321]
[1753877770592,3.2441,3755.8,3755.7,3.1938]
[1753877771596,1.9263,3755.8,3755.7,3.1938]
[1753877771891,3.4441,3755.9,3755.8,2.2802]
[1753877772091,3.4441,3755.9,3755.8,1.321]
[1753877772292,1.44054,3755.8,3755.6,1.321]
[1753877772495,3.2441,3755.8,3755.7,3.1938]
[1753877773098,3.2441,3755.8,3755.7,1.321]
[1753877773295,0.2,3755.9,3755.8,0.53254]
[1753877773496,0.2,3755.9,3755.8,3.72634]
[1753877773795,0.018,3756.3,3756.2,3.72628]
[1753877774101,0.018,3756.3,3756.2,6.4016]
[1753877774500,0.926,3756.3,3756.2,6.4016]
[1753877774700,0.018,3756.3,3756.2,6.4016]
[1753877774997,0.018,3756.3,3756.2,6.93408]
[1753877775204,3.2621,3756.3,3756.2,6.4016]
[1753877775399,3.2621,3756.3,3756.2,3.2078]
[1753877775696,3.2621,3756.3,3755.7,0.9136]
[1753877775697,3.7766,3756.1,3755.9,3.1938]
[1753877775901,1.0363,3756.3,3756.2,3.1938]
[1753877776105,0.018,3756.3,3756.2,3.1938]
[1753877776498,0.926,3756.3,3756.2,3.72628]
[1753877776698,0.926,3756.3,3756.2,3.1938]
[1753877776898,0.018,3756.3,3756.2,3.72628]
[1753877777398,0.53236,3757.1,3756.9,3.1938]
[1753877777706,0.21209514,3757.8,3757.0,3.2078]
[1753877777901,2.45859,3757.6,3757.4,1.8728]
[1753877778203,0.53234,3757.2,3757.1,1.321]
[1753877778393,3.2441,3757.0,3756.7,1.321]
[1753877778706,1.85019,3756.9,3756.8,1.321]
[1753877778898,1.85021,3756.7,3756.6,3.2078]
[1753877779405,3.77651,3756.7,3756.6,3.2078]
[1753877779699,1.9263,3757.0,3756.6,3.2078]
[1753877779904,40.8,3757.2,3756.8,3.72619]
[1753877780103,0.53236,3757.1,3757.0,3.1938]
[1753877780402,1.44036,3757.1,3757.0,3.1938]
[1753877780597,0.53241,3756.7,3756.6,3.2078]
[1753877780798,0.53245,3756.5,3756.3,0.53246]
[1753877781000,1.55077,3756.3,3756.2,4.1214]
[1753877781214,3.77657,3756.3,3756.2,3.2078]
[1753877781501,18.623,3756.8,3755.8,0.53254]
[1753877781502,0.53253,3755.9,3755.8,0.53254]
[1753877781698,5.4869,3756.8,3756.0,3.2001]
[1753877782001,0.53239,3756.9,3756.8,3.2001]
[1753877782207,41.33239,3756.9,3756.8,3.2001]
[1753877782504,3.74011,3757.4,3756.9,3.2001]
[1753877782799,0.2,3757.9,3756.9,3.2001]
[1753877782800,0.2,3757.9,3757.7,0.53226]
[1753877782996,1.5317,3757.9,3757.8,3.2001]
[1753877783399,3.3419,3757.9,3757.8,3.2001]
[1753877783998,3.3419,3757.9,3757.3,1.8438]
[1753877783999,0.53231,3757.5,3757.3,1.8438]
[1753877784198,1.39515,3757.2,3757.1,3.2078]
[1753877784504,0.8628,3757.2,3756.7,3.7402]
[1753877784704,0.8628,3757.1,3756.9,0.53238]
[1753877784900,0.8628,3757.3,3757.2,1.45443]
[1753877785204,20.99049,3757.6,3757.3,0.53232]
[1753877785404,20.99049,3757.6,3757.4,1.3563]
[1753877785605,20.99049,3757.6,3757.5,3.2001]
[1753877785796,0.53233,3757.3,3757.2,3.2078]
[1753877786099,21.7899,3757.6,3757.5,1.8438]
[1753877786100,0.53228,3757.6,3757.5,1.8438]
[1753877786294,1.86398,3757.6,3757.5,3.2001]
[1753877786500,0.73225,3757.9,3757.3,3.2001]
[1753877786696,0.53228,3757.7,3757.6,0.9217]
[1753877787000,1.8102,3757.7,3757.6,6.4079]
[1753877787203,0.53226,3757.8,3757.6,3.2078]
[1753877787400,3.67416,3757.8,3757.7,2.278]
[1753877787803,1.8102,3757.8,3757.7,2.278]
[1753877788004,1.8102,3757.8,3757.7,3.2001]
[1753877788404,1.8102,3757.8,3757.7,1.3563]
[1753877788405,3.1419,3757.8,3757.7,1.3563]
[1753877788707,0.53233,3757.3,3757.2,3.2078]
[1753877788900,3.67423,3757.3,3757.2,3.2078]
[1753877789307,41.0,3757.9,3757.2,5.4858]
[1753877789507,0.53231,3757.5,3757.3,0.53232]
[1753877789696,0.53233,3757.3,3757.2,5.4858]
[1753877789897,1.8102,3757.5,3757.4,1.3563]
[1753877790108,3.67421,3757.5,3757.4,1.3563]
[1753877790712,0.53229,3757.6,3757.5,0.5323]
[1753877791004,0.53229,3757.6,3757.5,3.2001]
[1753877791202,42.8102,3757.9,3757.2,3.2078]
[1753877791203,41.9474,3757.9,3757.6,3.73238]
[1753877791404,0.53227,3757.8,3757.7,3.73236]
[1753877791609,0.2,3757.9,3757.8,3.2001]
[1753877791806,1.0628,3757.9,3757.8,1.3563]
[1753877792009,0.2,3757.9,3757.8,1.45435]
[1753877792309,0.2,3757.9,3757.8,3.73235]
[1753877793999,0.8628,3758.6,3758.5,2.81016]
[1753877794209,0.9474,3758.8,3758.7,3.2001]
[1753877794400,0.53213,3758.7,3758.5,3.2078]
[1753877794599,1.39501,3758.1,3757.9,1.3563]
[1753877794908,3.67417,3757.7,3757.6,4.5641]
[1753877795211,0.53233,3757.3,3757.2,1.88863]
[1753877795511,0.8628,3757.6,3757.5,3.2001]
[1753877795707,3.1419,3757.6,3757.5,4.5641]
[1753877795908,3.1419,3757.9,3757.8,0.53224]
[1753877796102,3.74001,3758.2,3758.1,2.278]
[1753877796300,3.74001,3758.2,3758.1,3.2001]
[1753877796500,0.8628,3758.4,3758.2,3.7323]
[1753877796704,0.8628,3758.4,3758.3,3.2001]
[1753877797916,18.651,3758.8,3758.7,1.3563]
[1753877798119,18.651,3758.8,3758.1,3.2078]
[1753877798120,3.67403,3758.7,3758.5,4.5641]
[1753877798308,0.8628,3758.6,3758.5,6.4079]
[1753877798612,2.55638312,3758.6,3758.5,6.4079]
[1753877799009,0.74618312,3758.6,3758.5,6.4079]
[1753877799212,4.42022312,3758.6,3757.8,5.4862]
[1753877799517,3.1419,3757.9,3757.8,3.74005]
[1753877800019,3.1419,3757.9,3757.8,3.2078]
[1753877800513,0.8628,3757.9,3757.8,6.4079]
[1753877800708,3.1419,3757.9,3757.8,3.2078]
[1753877801014,3.1419,3757.3,3757.2,3.74013]
[1753877801313,3.1419,3757.3,3757.2,3.2078]
[1753877801609,0.53234,3757.2,3756.9,0.53237]
[1753877801809,1.8102,3757.1,3757.0,2.81036]
[1753877802006,1.3317,3756.9,3756.8,3.2078]
[1753877802208,42.13074,3757.6,3756.8,3.2078]
[1753877802209,0.53236,3757.1,3756.9,0.53238]
[1753877802411,0.53236,3757.1,3756.8,6.01819]
[1753877802713,2.2791,3757.5,3756.8,6.01819]
[1753877803017,40.8,3757.6,3757.1,0.9217]
[1753877803018,3.67423,3757.3,3757.1,0.9217]
[1753877803318,3.1419,3757.2,3757.1,1.3563]
[1753877803819,3.1419,3757.2,3757.1,2.278]
[1753877804214,3.1419,3757.2,3757.1,1.3563]
[1753877804611,3.1419,3757.2,3757.1,2.278]
[1753877805109,18.646,3757.4,3757.2,0.53234]
[1753877805322,1.8102,3757.4,3757.3,3.2001]
[1753877805513,41.7474,3757.6,3757.5,2.278]
[1753877805711,41.7474,3757.6,3757.4,0.53231]
[1753877805712,20.11563,3758.0,3757.6,3.73238]
[1753877805914,2.72671,3758.2,3757.8,3.73235]
[1753877806109,0.8628,3758.2,3757.8,3.73235]
[1753877806314,4.1552,3758.7,3758.5,3.73226]
[1753877806616,0.53211,3758.9,3758.6,0.53213]
[1753877806815,3.52473,3759.0,3758.4,5.4858]
[1753877807115,3.1419,3758.5,3758.4,3.2078]
[1753877807324,0.74818701,3758.5,3757.6,0.9217]
[1753877807510,3.1419,3758.4,3757.6,0.9217]
[1753877807716,0.8628,3758.2,3757.9,3.2078]
[1753877807915,3.1419,3758.0,3757.9,4.5641]
[1753877808118,3.89008701,3758.0,3757.9,3.2078]
[1753877809422,3.89008701,3758.0,3757.9,6.4079]
[1753877809423,0.74818701,3758.0,3757.9,6.4079]
[1753877809613,0.5322,3758.2,3758.0,3.2001]
[1753877809917,2.55889647,3758.1,3758.0,3.2001]
[1753877810120,3.89059647,3758.1,3758.0,3.2001]
[1753877810519,3.67413,3758.0,3757.9,3.2078]
[1753877810718,3.1419,3757.6,3757.5,4.5641]
[1753877811025,3.1419,3757.6,3757.5,6.4079]
[1753877811026,0.74869647,3757.6,3757.5,6.4079]
[1753877811217,0.95524113,3758.3,3757.7,1.33066]
[1753877811427,0.74901904,3758.2,3758.1,1.88851]
[1753877811720,0.53219,3758.3,3758.2,1.2865]
[1753877811916,0.74906616,3758.3,3758.2,3.6468]
[1753877812213,0.53218,3758.4,3758.2,3.6468]
[1753877812423,0.53216,3758.5,3758.3,0.53217]
[1753877812629,3.2078,3758.8,3758.7,1.81863]
[1753877812925,3.95702899,3758.8,3758.6,0.53214]
[1753877813116,0.74922899,3758.7,3758.6,3.64674]
[1753877815322,0.53211,3758.9,3758.8,3.64671]
[1753877815513,0.53211,3758.9,3758.8,1.2865]
[1753877815514,4.31400395,3758.9,3758.8,1.2865]
[1753877815718,2.34942,3758.8,3758.7,2.73562]
[1753877815915,3.09671395,3758.8,3758.7,2.2035]
[1753877816229,3.78189395,3758.8,3758.7,2.2035]
[1753877816524,3.78189395,3758.8,3758.7,3.1146]
[1753877816721,3.0346,3758.8,3758.7,3.1146]
[1753877817017,0.53211,3758.9,3758.8,2.1976]
[1753877817221,3.56671,3758.9,3758.8,3.1146]
[1753877817424,2.67704,3758.6,3758.5,3.2078]
[1753877817621,3.56674,3758.6,3758.5,3.2078]
[1753877817828,0.5322,3758.2,3758.0,0.53222]
[1753877818026,3.56682,3758.1,3758.0,3.1146]
[1753877818218,3.56682,3758.1,3757.8,3.2078]
[1753877818219,0.53222,3758.1,3757.9,0.53224]
[1753877818522,0.53218,3758.4,3758.2,0.53219]
[1753877818827,3.56678,3758.4,3758.3,2.2035]
[1753877819121,0.53224,3757.9,3757.8,3.74004]
[1753877819321,3.56684,3757.9,3757.8,3.2078]
[1753877820228,3.0346,3757.9,3757.8,3.2078]
[1753877820726,2.1449,3758.8,3758.3,0.53218]
[1753877821024,3.2078,3758.9,3758.7,0.53213]
[1753877821235,3.73991,3758.9,3758.8,3.1146]
[1753877821424,3.2078,3758.9,3758.6,0.53213]
[1753877821623,0.018,3759.3,3759.2,1.81856]
[1753877821929,0.018,3759.3,3759.2,6.85446]
[1753877822528,0.2,3759.9,3759.8,0.53197]
[1753877822720,0.2,3759.9,3759.8,3.64657]
[1753877822921,0.94683377,3759.9,3759.8,3.1146]
[1753877823118,1.8173,3759.8,3759.3,1.2865]
[1753877823317,0.53204,3759.3,3759.2,3.2078]
[1753877823616,3.56664,3759.3,3759.2,3.2078]
[1753877823818,0.53208,3759.0,3758.7,3.2078]
[1753877824026,0.9276,3759.2,3758.9,0.917]
[1753877824328,3.0346,3759.2,3759.1,1.2865]
[1753877824516,1.2173,3759.6,3759.4,0.53202]
[1753877824720,3.0346,3759.5,3759.4,2.2035]
[1753877825123,3.0346,3759.2,3759.1,5.4054]
[1753877825329,0.8897,3759.2,3759.1,6.3224]
[1753877825521,3.0346,3759.6,3759.5,1.2865]
[1753877825832,1.8173,3759.6,3759.5,1.2865]
[1753877826128,3.56658,3759.8,3759.6,2.2035]
[1753877826328,3.56658,3759.8,3759.7,1.2865]
[1753877826535,0.53198,3759.8,3759.7,3.1146]
[1753877826831,3.56658,3759.8,3759.7,3.1146]
[1753877827331,0.2,3759.9,3759.7,3.1146]
[1753877827534,0.2,3759.9,3759.8,3.1146]
[1753877832336,1.8173,3760.6,3760.5,3.64647]
[1753877832633,3.0346,3760.6,3760.5,3.1146]
[1753877832935,1.8173,3760.6,3760.5,3.1146]
[1753877833122,1.74914,3760.8,3760.6,1.8281]
[1753877833327,1.8173,3760.8,3760.7,3.1146]
[1753877834328,3.0346,3760.5,3760.0,1.8281]
[1753877834630,0.53187,3760.6,3760.5,0.53186]
[1753877834827,4.5373,3761.1,3760.6,0.53185]
[1753877834828,0.53184,3760.8,3760.6,0.53185]
[1753877835232,1.2173,3760.6,3760.5,0.53186]
[1753877835436,3.0346,3760.4,3760.3,3.2078]
[1753877836241,1.3296,3760.8,3760.1,3.2078]
[1753877836428,3.0346,3760.2,3760.1,3.2078]
[1753877836931,0.53193,3760.1,3760.0,0.1]
[1753877837128,3.56653,3760.1,3760.0,0.1]
[1753877837433,3.56653,3760.1,3759.6,3.7398]
[1753877837434,2.1449,3760.0,3759.6,3.2078]
[1753877837634,3.0346,3760.6,3760.5,0.53187]
[1753877837832,3.0346,3760.6,3760.0,0.9111]
[1753877837833,3.0346,3760.6,3760.2,1.2865]
[1753877838129,2.34924,3760.1,3759.9,0.53195]
[1753877838326,1.8173,3760.0,3759.9,0.53195]
[1753877838834,3.0346,3760.0,3759.9,0.53195]
[1753877840130,1.45959,3759.8,3759.6,3.2078]
[1753877840328,0.532,3759.7,3759.3,1.2865]
[1753877840633,0.532,3759.7,3759.4,0.53202]
[1753877841130,2.6769,3759.6,3759.5,0.53201]
[1753877841329,2.34934,3759.4,3759.2,3.73985]
[1753877841531,2.247,3759.4,3759.3,1.47113]
[1753877841833,1.8374,3759.7,3759.6,1.8503]
[1753877842023,0.9367,3759.6,3759.2,5.0581]
[1753877842329,3.1477,3759.4,3759.3,2.70984]
[1753877842632,1.8374,3759.4,3759.3,3.62104]
[1753877843424,3.67974,3759.3,3759.2,3.2078]
[1753877843932,0.9007,3759.6,3759.5,0.53201]
[1753877844125,62.5647,3760.1,3759.9,0.53195]
[1753877844325,42.64224,3760.1,3760.0,1.2387]
[1753877844634,1.3103,3759.5,3759.4,3.2078]
[1753877844832,3.1477,3759.5,3759.4,3.2078]
[1753877845029,1.33012,3759.3,3758.5,3.73996]
[1753877845331,3.1477,3758.6,3758.5,3.2078]
[1753877845633,43.9477,3758.6,3758.5,3.2078]
[1753877845832,3.1477,3757.9,3757.8,3.40472111]
[1753877846029,2.89823071,3757.9,3757.8,3.40472111]
[1753877846234,2.89823071,3757.9,3757.8,6.11478111]
[1753877846428,2.89823071,3757.9,3757.8,3.40472111]
[1753877847033,2.89823071,3757.9,3757.8,0.19692111]
[1753877847228,8.22042292,3757.9,3757.8,0.19692111]
[1753877847832,49.02042292,3757.9,3757.8,0.19692111]
[1753877848230,61.2774,3757.9,3757.8,1.43562111]
[1753877848431,62.5877,3757.9,3757.8,1.43562111]
[1753877848629,40.8,3757.9,3757.8,2.37472111]
[1753877848938,1.8374,3758.3,3758.2,3.6212]
[1753877849131,0.9007,3758.5,3758.3,0.9112]
[1753877849333,0.9007,3758.5,3758.4,2.1778]
[1753877849532,1.8374,3758.5,3758.4,1.2387]
[1753877849726,1.8374,3758.5,3757.8,1.43562111]
[1753877849727,2.247,3757.9,3757.8,1.43562111]
[1753877850038,1.8374,3757.9,3757.8,2.37472111]
[1753877850340,1.8374,3757.9,3757.8,3.28592111]
[1753877850829,0.53223,3758.0,3757.8,3.28592111]
[1753877850830,0.53222,3758.1,3757.9,0.53224]
[1753877851138,0.9007,3758.1,3758.0,2.1778]
[1753877851335,41.7007,3758.5,3758.1,3.089]
[1753877851635,0.9007,3758.5,3758.4,3.62117]
[1753877851844,0.9367,3758.7,3758.5,3.62115]
[1753877852141,1.46884,3758.7,3758.6,3.089]
[1753877852439,0.53217,3758.5,3758.1,1.2387]
[1753877852639,1.43289,3758.3,3758.1,2.1778]
[1753877852832,19.97025,3759.0,3757.9,0.53223]
[1753877852833,3.1477,3758.0,3757.9,0.53223]
[1753877853028,3.1477,3757.9,3757.8,0.19692111]
[1753877853836,27.11589221,3757.9,3757.8,0.19692111]
[1753877854938,3.1477,3757.2,3757.1,3.2078]
[1753877856841,3.1477,3757.2,3756.6,0.9391]
[1753877856842,0.5324,3756.8,3756.6,2.71022]
[1753877857040,1.46913,3756.6,3756.5,1.2387]
[1753877857242,0.5324,3756.8,3756.5,3.62144]
[1753877857546,1.4691,3756.8,3756.6,3.089]
[1753877857737,1.8374,3756.7,3756.6,2.1778]
[1753877857939,3.1477,3756.7,3756.6,2.1778]
[1753877858448,40.8,3756.9,3756.8,1.2387]
[1753877858638,18.633,3757.2,3756.9,0.53238]
[1753877858840,0.53237,3757.1,3757.0,1.8503]
[1753877859138,0.53237,3757.1,3756.4,3.2078]
[1753877859139,0.9007,3756.7,3756.4,5.59055]
[1753877859444,2.74344,3756.5,3756.4,4.1469]
[1753877859648,3.68014,3756.5,3756.4,4.1469]
[1753877859842,3.68014,3756.5,3756.4,3.2078]
[1753877860643,1.46914,3756.6,3756.5,1.2387]
[1753877860946,0.9367,3756.6,3756.5,3.089]
[1753877861446,3.2078,3757.0,3756.9,3.089]
[1753877861745,2.247,3756.9,3756.7,0.5324]
[1753877861940,1.8374,3756.8,3756.7,0.5324]
[1753877862140,1.8374,3756.8,3756.7,2.3827]
[1753877862738,3.1477,3756.8,3756.7,2.1778]
[1753877862940,3.1477,3756.8,3756.7,3.089]
[1753877862941,1.8374,3756.8,3756.7,3.089]
[1753877863237,18.639,3757.1,3756.8,2.1778]
[1753877863544,18.639,3757.1,3757.0,3.62137]
[1753877863745,18.639,3757.1,3757.0,3.089]
[1753877864041,3.1477,3756.8,3756.7,1.2387]
[1753877864244,3.68014,3756.5,3756.4,4.4465]
[1753877864440,40.8,3756.8,3756.7,3.62141]
[1753877864637,2.36975,3757.2,3757.1,0.53236]
[1753877864948,20.07305,3757.2,3756.9,3.2078]
[1753877865136,19.17833,3757.3,3757.1,3.089]
[1753877865337,0.53237,3757.0,3756.9,3.2078]
[1753877865536,1.8374,3757.0,3756.4,3.2078]
[1753877865738,3.1477,3757.2,3756.4,3.2078]
[1753877865940,0.9367,3756.9,3756.8,0.9391]
[1753877866140,0.53238,3757.0,3756.6,1.2387]
[1753877866141,0.5324,3756.8,3756.6,1.2387]
[1753877866341,3.1477,3756.5,3756.4,3.2078]
[1753877866747,1.8374,3756.5,3756.4,6.2968]
[1753877866942,1.8374,3756.7,3756.5,2.1778]
[1753877867143,0.53244,3756.6,3756.5,3.089]
[1753877867346,3.68014,3756.6,3756.4,3.2078]
[1753877867549,3.1477,3756.5,3756.4,3.2078]
[1753877867942,0.9007,3756.5,3756.4,4.4465]
[1753877868147,0.9007,3756.5,3756.4,6.2968]
[1753877868654,40.8,3756.6,3756.5,3.62144]
[1753877868848,41.7007,3756.6,3756.5,3.089]
[1753877869054,43.9477,3756.6,3756.5,3.089]
[1753877869254,0.53238,3757.0,3756.5,3.089]
[1753877869550,0.53238,3757.0,3756.9,3.089]
[1753877869849,44.48008,3757.0,3756.9,1.2387]
[1753877870153,44.48008,3757.0,3756.9,3.089]
[1753877870654,3.68008,3757.0,3756.9,3.089]
[1753877870947,2.36978,3757.0,3756.9,3.089]
[1753877871749,40.8,3757.1,3757.0,0.53237]
[1753877871943,2.07,3757.7,3757.5,0.8905]
[1753877872144,0.53231,3757.5,3757.0,3.2078]
[1753877872751,0.53231,3757.5,3757.1,3.0648]
[1753877873056,2.38934,3757.2,3757.1,3.0648]
[1753877873554,2.38937,3757.0,3756.9,6.2726]
[1753877874150,0.53237,3757.1,3756.9,3.74017]
[1753877874755,0.53237,3757.1,3757.0,2.1743]
[1753877874956,0.53237,3757.1,3757.0,3.0648]
[1753877875551,0.53235,3757.2,3757.1,2.70996]
[1753877875750,0.53235,3757.2,3757.1,3.59716]
[1753877876152,0.53235,3757.2,3757.1,3.0648]
[1753877876348,3.56037,3757.0,3756.9,4.4949]
[1753877876552,0.53244,3756.6,3756.5,1.41963]
[1753877876750,2.38944,3756.6,3756.5,3.0648]
[1753877876953,3.56044,3756.6,3756.5,3.0648]
[1753877877447,2.38944,3756.6,3756.5,3.0648]
[1753877877651,3.56044,3756.6,3756.5,1.2871]
[1753877877846,0.53247,3756.3,3756.2,0.01863561]
[1753877878057,3.56047,3756.3,3756.2,0.01863561]
[1753877878449,44.36047,3756.3,3756.2,0.01863561]
[1753877878855,44.36047,3756.3,3756.2,1.30573561]
[1753877879154,44.36047,3756.3,3756.2,0.01863561]
[1753877880351,43.18947,3756.3,3756.2,3.08343561]
[1753877880554,43.18947,3756.3,3756.2,2.19293561]
[1753877880853,40.8,3756.3,3756.2,3.08343561]
[1753877881054,0.53243,3756.6,3756.4,0.53245]
[1753877881253,0.53243,3756.6,3756.5,3.0648]
[1753877881455,0.53247,3756.3,3756.2,3.22643561]
[1753877881657,40.8,3756.6,3756.2,3.22643561]
[1753877881847,43.40244,3756.6,3756.5,3.0648]
[1753877882051,0.53244,3756.6,3756.5,3.0648]
[1753877882252,2.38944,3756.6,3756.5,3.0648]
[1753877882450,1.857,3756.6,3756.5,3.59724]
[1753877882752,4.53862,3757.4,3757.1,3.0648]
[1753877882753,19.15435,3757.2,3757.1,3.0648]
[1753877882957,19.90312664,3757.2,3757.1,3.0648]
[1753877883752,19.90312664,3757.2,3756.7,3.74021]
[1753877883753,3.5604,3756.8,3756.7,6.2726]
[1753877884054,3.5604,3756.8,3756.7,4.4949]
[1753877884262,3.5604,3756.8,3756.7,5.3821]
[1753877884965,1.857,3756.8,3756.7,6.2726]
[1753877885261,18.622,3756.9,3756.7,3.2078]
[1753877885652,19.15435,3757.2,3757.0,0.53236]
[1753877885849,19.15435,3757.2,3757.1,6.2726]
[1753877886052,18.622,3757.2,3757.1,6.2726]
[1753877886257,0.7496262,3757.2,3757.1,6.2726]
[1753877886458,43.1893,3757.6,3757.1,6.2726]
[1753877886459,20.10949113,3757.9,3757.7,3.0648]
[1753877886761,1.33048,3758.3,3757.7,3.0648]
[1753877886762,0.95524113,3758.4,3758.3,0.53219]
[1753877886955,0.95524113,3758.4,3758.3,3.59699]
[1753877887463,0.95524113,3758.5,3758.4,3.0648]
[1753877888653,0.5322,3758.3,3758.2,4.4949]
[1753877888858,3.028,3758.4,3758.3,1.2871]
[1753877889060,1.857,3758.0,3757.6,2.30998]
[1753877889262,3.028,3757.7,3757.6,1.7777]